fUST/lending_fUST_20251002
["ID","MTS","AMOUNT","RATE_DAILY","PERIOD"]
[388800318,1759363858443,-500.0,0.00021643,2]
[388800319,1759363858452,-500.0,0.00021643,2]
[388800321,1759363858462,-274.00051154,0.00021644,2]
[388800324,1759363858472,-151.0,0.000218,2]
[388800326,1759363858481,-500.0,0.00021812,2]
[388800327,1759363858490,-6582.95973359,0.00021817,2]
[388800329,1759363858499,-500.0,0.00021917,2]
[388800331,1759363858509,-500.0,0.00021917,2]
[388800333,1759363858520,-500.0,0.00021917,2]
[388800335,1759363858529,-500.0,0.00021917,2]
[388800337,1759363858539,-500.0,0.00021917,2]
[388800339,1759363858549,-500.0,0.00021917,2]
[388800341,1759363858558,-460.0,0.00021917,2]
[388800343,1759363858568,-151.0,0.00021917,2]
[388800345,1759363858577,-151.0,0.00021917,2]
[388800347,1759363858586,-151.0,0.00021917,2]
[388800349,1759363858595,-852.3,0.00021917,2]
[388800351,1759363858604,-151.0,0.00021917,2]
[388800353,1759363858613,-151.0,0.00021917,2]
[388800355,1759363858622,-151.0,0.00021917,2]
[388800357,1759363858631,-151.0,0.00021917,2]
[388800359,1759363858640,-500.0,0.00021917,2]
[388800361,1759363858650,-151.0,0.00021917,2]
[388800363,1759363858660,-664.37,0.00021917,2]
[388800365,1759363858669,-400.24787213,0.00021917,2]
[388800367,1759363858679,-671.057709,0.00021917,2]
[388800369,1759363858688,-671.057709,0.00021917,2]
[388800371,1759363858697,-671.057709,0.00021917,2]
[388800373,1759363858706,-671.057709,0.00021917,2]
[388800375,1759363858715,-151.0,0.00021917,2]
[388800385,1759363858816,-151.0,0.00021917,2]
[388800387,1759363858826,-220.299151,0.00021917,2]
[388800389,1759363858835,-588.45,0.00021917,2]
[388800391,1759363858846,-1518.07,0.00021917,2]
[388800393,1759363858856,-500.0,0.00021917,2]
[388800395,1759363858866,-500.0,0.00021917,2]
[388800397,1759363858876,-3211.53,0.00021917,2]
[388800399,1759363858885,-500.0,0.00021917,2]
[388800401,1759363858896,-713.19,0.00021917,2]
[388800404,1759363858906,-508.23,0.00021917,2]
[388800405,1759363858916,-500.0,0.00021917,2]
[388800408,1759363858926,-500.0,0.00021917,2]
[388800410,1759363858935,-500.0,0.00021917,2]
[388800412,1759363858949,-500.0,0.00021917,2]
[388800414,1759363858959,-574.32,0.00021917,2]
[388800416,1759363858968,-179.288995,0.00021917,2]
[388800418,1759363858978,-151.0,0.00021917,2]
[388800420,1759363858990,-1834.128022,0.00021917,2]
[388800422,1759363859000,-1834.128022,0.00021917,2]
[388800424,1759363859009,-600.0,0.00021917,2]
[388800426,1759363859020,-151.0,0.00021917,2]
[388800428,1759363859030,-1834.128022,0.00021917,2]
[388800430,1759363859040,-151.0,0.00021917,2]
[388800432,1759363859049,-152.004238,0.00021918,2]
[388800434,1759363859059,-151.0,0.00021918,2]
[388800436,1759363859068,-151.0,0.00021918,2]
[388800438,1759363859078,-151.0,0.00021918,2]
[388800440,1759363859087,-151.0,0.00021918,2]
[388800442,1759363859096,-151.0,0.00021918,2]
[388800444,1759363859105,-151.0,0.00021918,2]
[388800446,1759363859115,-504.13971878,0.00021918,2]
[388800448,1759363859125,-6070.39,0.00022,2]
[388800449,1759363859134,-151.0,0.00022,7]
[388800451,1759363859144,-178.454584,0.00022,7]
[388800453,1759363859153,-151.0,0.00022,7]
[388800456,1759363859163,-151.0,0.00022,7]
[388800458,1759363859173,-151.0,0.00022,7]
[388800460,1759363859182,-151.0,0.00022,7]
[388800461,1759363859191,-460.0,0.00022002,2]
[388800463,1759363859201,-10929.03493533,0.00022091,2]
[388800465,1759363859210,-168.0,0.0002211,2]
[388800468,1759363859220,-246.0,0.00022164,6]
[388800469,1759363859230,-168.0,0.00022187,2]
[388800472,1759363859239,-338.21,0.00022191,2]
[388800474,1759363859249,-451.18,0.00022191,2]
[388800475,1759363859258,-500.0,0.00022191,2]
[388800477,1759363859268,-500.0,0.00022191,2]
[388800479,1759363859279,-852.3,0.00022191,2]
[388800481,1759363859288,-500.0,0.00022191,2]
[388800483,1759363859298,-664.37,0.00022191,2]
[388800485,1759363859308,-588.45,0.00022191,2]
[388800487,1759363859317,-1518.07,0.00022191,2]
[388800490,1759363859327,-612.12161711,0.00022191,2]
[388800491,1759363859336,-500.0,0.00022191,2]
[388800494,1759363859347,-3211.53,0.00022191,2]
[388800496,1759363859356,-500.0,0.00022191,2]
[388800498,1759363859366,-713.19,0.00022191,2]
[388800500,1759363859376,-500.0,0.00022191,2]
[388800502,1759363859385,-493.83834386,0.00022191,2]
[388800503,1759363859395,-500.0,0.00022191,2]
[388800504,1759363859404,-170.34534054,0.00022191,2]
[388800505,1759363859414,-150.0,0.00022361,2]
[388800506,1759363859423,-5000.0,0.00022378,2]
[388800507,1759363859432,-500.0,0.00022465,2]
[388800508,1759363859441,-500.0,0.00022465,2]
[388800509,1759363859450,-852.3,0.00022465,2]
[388800510,1759363859459,-500.0,0.00022465,2]
[388800511,1759363859469,-664.37,0.00022465,2]
[388800512,1759363859479,-588.45,0.00022465,2]
[388800513,1759363859489,-1518.07,0.00022465,2]
[388800514,1759363859498,-500.0,0.00022465,2]
[388800515,1759363859507,-3211.53,0.00022465,2]
[388800516,1759363859517,-500.0,0.00022465,2]
[388800517,1759363859527,-713.19,0.00022465,2]
[388800518,1759363859537,-500.0,0.00022465,2]
[388800519,1759363859546,-500.0,0.00022465,2]
[388800520,1759363859556,-4000.0,0.000225,4]
[388800521,1759363859566,-168.0,0.00022528,2]
[388800522,1759363859575,-560.0,0.0002255,2]
[388800523,1759363859584,-168.0,0.000226,2]
[388800524,1759363859594,-168.0,0.0002261,2]
[388800525,1759363859603,-979.0,0.00022699,2]
[388800526,1759363859613,-2156.0,0.00022699,2]
[388800527,1759363859622,-630.0,0.00022699,2]
[388800528,1759363859632,-151.0,0.00022739,7]
[388800529,1759363859641,-161.801225,0.00022739,7]
[388800530,1759363859651,-500.0,0.00022739,2]
[388800531,1759363859661,-500.0,0.00022739,2]
[388800532,1759363859670,-852.3,0.00022739,2]
[388800533,1759363859683,-595.92104227,0.00022739,2]
[388800534,1759363859692,-664.37,0.00022739,2]
[388800536,1759363859702,-588.45,0.00022739,2]
[388800538,1759363859712,-1518.07,0.00022739,2]
[388800540,1759363859722,-500.0,0.00022739,2]
[388800542,1759363859731,-3211.53,0.00022739,2]
[388800544,1759363859740,-500.0,0.00022739,2]
[388800546,1759363859750,-713.19,0.00022739,2]
[388800548,1759363859760,-433.04225536,0.00022739,2]
[388800550,1759363859770,-402.9,0.00022739,2]
[388800552,1759363859779,-160.0,0.00023,2]
[388800554,1759363859789,-500.0,0.00023013,2]
[388800556,1759363859798,-500.0,0.00023013,2]
[388800558,1759363859808,-852.3,0.00023013,2]
[388800560,1759363859818,-664.37,0.00023013,2]
[388800562,1759363859827,-588.45,0.00023013,2]
[388800564,1759363859838,-1518.07,0.00023013,2]
[388800566,1759363859848,-364.26,0.00023013,2]
[388800568,1759363859857,-3211.53,0.00023013,2]
[388800570,1759363859867,-500.0,0.00023013,2]
[388800572,1759363859876,-713.19,0.00023013,2]
[388800573,1759363859886,-151.0,0.00023028,7]
[388800575,1759363859895,-151.0,0.00023028,7]
[388800577,1759363859905,-330.98644,0.00023028,7]
[388800579,1759363859915,-151.0,0.00023028,7]
[388800581,1759363859925,-151.0,0.00023028,7]
[388800583,1759363859935,-330.98644,0.00023028,7]
[388800586,1759363859949,-330.98644,0.00023028,7]
[388800587,1759363859959,-330.986443,0.00023028,7]
[388800589,1759363859969,-245.080283,0.00023028,7]
[388800590,1759363859978,-245.080283,0.00023028,7]
[388800591,1759363859989,-245.080283,0.00023028,7]
[388800592,1759363859998,-245.080274,0.00023028,7]
[388800593,1759363860008,-151.0,0.00023028,7]
[388800594,1759363860019,-151.0,0.00023028,7]
[388800595,1759363860030,-151.0,0.00023028,7]
[388800596,1759363860040,-168.0,0.00023039,2]
[388800597,1759363860050,-660.0,0.00023098,2]
[388800598,1759363860061,-168.0,0.00023163,2]
[388800599,1759363860071,-307.43,0.00023287,2]
[388800600,1759363860080,-500.0,0.00023287,2]
[388800601,1759363860089,-852.3,0.00023287,2]
[388800602,1759363860099,-664.37,0.00023287,2]
[388800603,1759363860108,-286.72953296,0.00023287,2]
[388800604,1759363860272,-177.83949429,0.00019178,2]
[388800605,1759363860282,-413.65968065,0.00019178,2]
[388800630,1759363860711,-66.34031935,0.00019178,2]
[388800632,1759363860721,-355.48968064,0.00019178,2]
[388800634,1759363860747,-124.51031936,0.00019178,2]
[388800635,1759363860756,-569.76,0.00019178,2]
[388800637,1759363860766,-500.0,0.00019178,2]
[388800639,1759363860777,-500.0,0.00019178,2]
[388800641,1759363860786,-480.0,0.00019178,2]
[388800643,1759363860795,-500.0,0.00019178,2]
[388800645,1759363860804,-845.92,0.00019178,2]
[388800647,1759363860814,-460.0,0.00019178,2]
[388800649,1759363860823,-442.66046678,0.00019178,2]
[388800656,1759363861353,460.6059428,0.00018878,2]
[388800676,1759364163574,379.21443507,0.00028767,120]
[388800677,1759364190106,196.42,0.000188,2]
[388800682,1759364566603,3000.0,0.00033418,60]
[388800683,1759364596299,13377.0,0.00033418,120]
[388800700,1759364838131,-300.0,0.00018961,2]
[388800701,1759364838152,-867.53528559,0.00018962,2]
[388800714,1759364927950,5000.0,0.00018878,2]
[388800715,1759364956591,500.0,0.00033425,60]
[388800716,1759364956857,500.0,0.00033425,60]
[388800717,1759364957123,500.0,0.00033425,60]
[388800718,1759364957324,500.0,0.00033425,60]
[388800719,1759364957414,500.0,0.00033425,60]
[388800720,1759364957586,500.0,0.00033425,60]
[388800721,1759364957707,500.0,0.00033425,60]
[388800722,1759364957816,307.83293891,0.00033425,60]
[388800723,1759364957944,195.54,0.00033425,60]
[388800724,1759364958955,480.0,0.00033425,60]
[388800725,1759364959567,500.0,0.00033425,60]
[388800726,1759364959675,500.0,0.00033425,60]
[388800727,1759364959704,500.0,0.00033425,60]
[388800728,1759364959915,500.0,0.00033425,60]
[388800729,1759364959944,500.0,0.00033425,60]
[388800730,1759364960187,500.0,0.00033425,60]
[388800731,1759364960462,500.0,0.00033425,60]
[388800732,1759364960709,500.0,0.00033425,60]
[388800733,1759364960957,500.0,0.00033425,60]
[388800734,1759364961366,500.0,0.00033425,60]
[388800735,1759364961625,500.0,0.00033425,60]
[388800736,1759364961709,500.0,0.00033425,60]
[388800737,1759364961962,500.0,0.00033425,60]
[388800738,1759364961992,500.0,0.00033425,60]
[388800739,1759364962208,500.0,0.00033425,60]
[388800740,1759364962242,500.0,0.00033425,60]
[388800741,1759364962444,500.0,0.00033425,60]
[388800742,1759364962478,500.0,0.00033425,60]
[388800743,1759364962715,470.65517577,0.00033425,60]
[388800744,1759364963212,500.0,0.00033425,60]
[388800745,1759364963440,500.0,0.00033425,60]
[388800746,1759364963486,500.0,0.00033425,60]
[388800747,1759364963717,500.0,0.00033425,60]
[388800748,1759364963971,500.0,0.00033425,60]
[388800749,1759364964610,500.0,0.00033425,60]
[388800750,1759364964850,460.0,0.00033425,60]
[388800751,1759364965015,500.0,0.00033425,60]
[388800752,1759364965304,500.0,0.00033425,60]
[388800753,1759364967162,500.0,0.00033425,60]
[388800754,1759364967399,500.0,0.00033425,60]
[388800755,1759364967673,440.0,0.00033425,60]
[388800756,1759364970746,401.01847724,0.00033425,60]
[388800757,1759364971679,500.0,0.00033425,60]
[388800758,1759364971909,500.0,0.00033425,60]
[388800759,1759364973245,500.0,0.00033425,60]
[388800760,1759364973501,500.0,0.00033425,60]
[388800761,1759364973784,500.0,0.00033425,60]
[388800762,1759364975216,500.0,0.00033425,60]
[388800763,1759364975484,500.0,0.00033425,60]
[388800764,1759364975613,480.0,0.00033425,60]
[388800765,1759364975716,500.0,0.00033425,60]
[388800766,1759364977008,500.0,0.00033425,60]
[388800767,1759364977370,500.0,0.00033425,60]
[388800768,1759364977468,482.96062571,0.00033425,60]
[388800769,1759364978644,500.0,0.00033425,60]
[388800770,1759364978879,500.0,0.00033425,60]
[388800771,1759364979109,500.0,0.00033425,60]
[388800772,1759364979319,500.0,0.00033425,60]
[388800773,1759364979350,500.0,0.00033425,60]
[388800774,1759364979553,500.0,0.00033425,60]
[388800775,1759364979904,420.0,0.00033425,60]
[388800776,1759364980828,500.0,0.00033425,60]
[388800777,1759364981083,500.0,0.00033425,60]
[388800778,1759364981190,500.0,0.00033425,60]
[388800779,1759364981371,500.0,0.00033425,60]
[388800780,1759364981450,460.0,0.00033425,60]
[388800781,1759364982872,500.0,0.00033425,60]
[388800782,1759364983114,500.0,0.00033425,60]
[388800783,1759364983292,500.0,0.00033425,60]
[388800784,1759364983339,500.0,0.00033425,60]
[388800785,1759364983543,500.0,0.00033425,60]
[388800786,1759364983677,500.0,0.00033425,60]
[388800787,1759364983795,500.0,0.00033425,60]
[388800788,1759364983898,500.0,0.00033425,60]
[388800789,1759364984126,257.48597191,0.00033425,60]
[388800790,1759364985890,500.0,0.00033425,60]
[388800791,1759364986173,500.0,0.00033425,60]
[388800792,1759364986432,598.76,0.00033425,60]
[388800793,1759364987062,384.49584015,0.00033425,60]
[388800794,1759364987607,500.0,0.00033425,60]
[388800795,1759364987853,500.0,0.00033425,60]
[388800796,1759364988119,500.0,0.00033425,60]
[388800797,1759364988365,500.0,0.00033425,60]
[388800798,1759364988615,460.0,0.00033425,60]
[388800799,1759364990076,500.0,0.00033425,60]
[388800800,1759364990265,500.0,0.00033425,60]
[388800801,1759364990486,500.0,0.00033425,60]
[388800802,1759364990515,500.0,0.00033425,60]
[388800803,1759364990901,21023.0,0.00033425,60]
[388800804,1759364991188,500.0,0.00033425,60]
[388800805,1759364991216,500.0,0.00033425,60]
[388800806,1759364991418,500.0,0.00033425,60]
[388800807,1759364991654,500.0,0.00033425,60]
[388800808,1759364991827,500.0,0.00033425,60]
[388800809,1759364991881,500.0,0.00033425,60]
[388800810,1759364992081,440.0,0.00033425,60]
[388800811,1759364992169,500.0,0.00033425,60]
[388800812,1759364992280,500.0,0.00033425,60]
[388800813,1759364992313,500.0,0.00033425,60]
[388800814,1759364992425,500.0,0.00033425,60]
[388800815,1759364992503,500.0,0.00033425,60]
[388800816,1759364992581,500.0,0.00033425,60]
[388800817,1759364992738,500.0,0.00033425,60]
[388800818,1759364992849,563.23,0.00033425,60]
[388800819,1759364992967,500.0,0.00033425,60]
[388800820,1759364993200,500.0,0.00033425,60]
[388800821,1759364993442,500.0,0.00033425,60]
[388800822,1759364993766,500.0,0.00033425,60]
[388800823,1759364993993,500.0,0.00033425,60]
[388800824,1759364994249,480.0,0.00033425,60]
[388800825,1759364996035,500.0,0.00033425,60]
[388800826,1759364996307,480.0,0.00033425,60]
[388800827,1759364996441,500.0,0.00033425,60]
[388800828,1759364997741,452.68828644,0.00033425,60]
[388800829,1759364997782,500.0,0.00033425,60]
[388800830,1759364998108,500.0,0.00033425,60]
[388800831,1759364998140,500.0,0.00033425,60]
[388800832,1759364998255,500.0,0.00033425,60]
[388800833,1759364998287,500.0,0.00033425,60]
[388800834,1759364998479,500.0,0.00033425,60]
[388800835,1759364998718,500.0,0.00033425,60]
[388800836,1759364999004,500.0,0.00033425,60]
[388800837,1759364999501,566.89362169,0.00033425,60]
[388800838,1759365003650,480.0,0.00033425,60]
[388800839,1759365004246,500.0,0.00033425,60]
[388800840,1759365004551,500.0,0.00033425,60]
[388800841,1759365004785,500.0,0.00033425,60]
[388800842,1759365004919,480.0,0.00033425,60]
[388800843,1759365004958,500.0,0.00033425,60]
[388800844,1759365005044,500.0,0.00033425,60]
[388800845,1759365005230,460.0,0.00033425,60]
[388800846,1759365005275,500.0,0.00033425,60]
[388800847,1759365005542,464.56508108,0.00033425,60]
[388800848,1759365006558,480.0,0.00033425,60]
[388800849,1759365007241,500.0,0.00033425,60]
[388800850,1759365007475,500.0,0.00033425,60]
[388800851,1759365007750,500.0,0.00033425,60]
[388800852,1759365008448,481.7384302,0.00033425,60]
[388800853,1759365010020,480.0,0.00033425,60]
[388800854,1759365010331,485.85631696,0.00033425,60]
[388800855,1759365011586,473.33838339,0.00033425,60]
[388800856,1759365013693,460.0,0.00033425,60]
[388800857,1759365014991,442.19019922,0.00033425,60]
[388800858,1759365015220,500.0,0.00033425,60]
[388800859,1759365015488,500.0,0.00033425,60]
[388800860,1759365017861,500.0,0.00033425,60]
[388800861,1759365018105,500.0,0.00033425,60]
[388800862,1759365018288,500.0,0.00033425,60]
[388800863,1759365018337,500.0,0.00033425,60]
[388800864,1759365018652,460.0,0.00033425,60]
[388800865,1759365018687,500.0,0.00033425,60]
[388800866,1759365018811,257.7,0.00033425,60]
[388800867,1759365018919,500.0,0.00033425,60]
[388800868,1759365018989,480.0,0.00033425,60]
[388800869,1759365019181,500.0,0.00033425,60]
[388800870,1759365019407,500.0,0.00033425,60]
[388800871,1759365019653,500.0,0.00033425,60]
[388800872,1759365019847,480.0,0.00033425,60]
[388800873,1759365019896,500.0,0.00033425,60]
[388800874,1759365020391,480.0,0.00033425,60]
[388800875,1759365021728,272.78391467,0.00033425,60]
[388800876,1759365022230,500.0,0.00033425,60]
[388800877,1759365022478,500.0,0.00033425,60]
[388800878,1759365022810,500.0,0.00033425,60]
[388800879,1759365022845,500.0,0.00033425,60]
[388800880,1759365023055,500.0,0.00033425,60]
[388800881,1759365023088,500.0,0.00033425,60]
[388800882,1759365023294,500.0,0.00033425,60]
[388800883,1759365023326,480.0,0.00033425,60]
[388800884,1759365023546,500.0,0.00033425,60]
[388800885,1759365023871,500.0,0.00033425,60]
[388800886,1759365023985,500.0,0.00033425,60]
[388800887,1759365024113,500.0,0.00033425,60]
[388800888,1759365024245,460.0,0.00033425,60]
[388800889,1759365024366,500.0,0.00033425,60]
[388800890,1759365024608,500.0,0.00033425,60]
[388800891,1759365024860,500.0,0.00033425,60]
[388800892,1759365024932,508.64960983,0.00033425,60]
[388800893,1759365025097,500.0,0.00033425,60]
[388800894,1759365025350,500.0,0.00033425,60]
[388800895,1759365025607,500.0,0.00033425,60]
[388800896,1759365025846,500.0,0.00033425,60]
[388800897,1759365026080,500.0,0.00033425,60]
[388800898,1759365026318,500.0,0.00033425,60]
[388800899,1759365026555,500.0,0.00033425,60]
[388800900,1759365026811,500.0,0.00033425,60]
[388800901,1759365027048,500.0,0.00033425,60]
[388800902,1759365027264,500.0,0.00033425,60]
[388800903,1759365027331,500.0,0.00033425,60]
[388800904,1759365027581,500.0,0.00033425,60]
[388800905,1759365027817,339.9438042,0.00033425,60]
[388800906,1759365028730,500.0,0.00033425,60]
[388800907,1759365028967,500.0,0.00033425,60]
[388800908,1759365029004,500.0,0.00033425,60]
[388800909,1759365029191,500.0,0.00033425,60]
[388800910,1759365029359,460.0,0.00033425,60]
[388800911,1759365029435,500.0,0.00033425,60]
[388800912,1759365029466,500.0,0.00033425,60]
[388800913,1759365029557,399.14445693,0.00033425,60]
[388800914,1759365029659,440.0,0.00033425,60]
[388800915,1759365029710,500.0,0.00033425,60]
[388800916,1759365030143,500.0,0.00033425,60]
[388800917,1759365030378,342.06436435,0.00033425,60]
[388800936,1759365031730,500.0,0.00033425,60]
[388800959,1759365031971,-300.0,0.00018961,2]
[388800960,1759365031980,-747.73320708,0.00018962,2]
[388800961,1759365031991,-14539.18280295,0.00018962,2]
[388800973,1759365032855,500.0,0.00033425,60]
[388800974,1759365033098,500.0,0.00033425,60]
[388800975,1759365033128,500.0,0.00033425,60]
[388800976,1759365033467,479.50333973,0.00033425,60]
[388800977,1759365033498,500.0,0.00033425,60]
[388800978,1759365033596,421.04,0.00033425,60]
[388800979,1759365034114,500.0,0.00033425,60]
[388800980,1759365034348,539.06768688,0.00033425,60]
[388800981,1759365035409,500.0,0.00033425,60]
[388800982,1759365035639,480.0,0.00033425,60]
[388800983,1759365036445,500.0,0.00033425,60]
[388800984,1759365036726,442.85676906,0.00033425,60]
[388800991,1759365037419,500.0,0.00033425,60]
[388801005,1759365037665,500.0,0.00033425,60]
[388801006,1759365037725,-9825.23360262,0.00018962,2]
[388801007,1759365037734,-359.96513594,0.00019,2]
[388801008,1759365037744,-3154.025171,0.00019078,2]
[388801009,1759365037753,-741.6,0.00019168,3]
[388801010,1759365037763,-500.0,0.00019169,2]
[388801011,1759365037772,-500.0,0.00019169,2]
[388801012,1759365037781,-500.0,0.00019169,2]
[388801013,1759365037790,-393.15820122,0.00019169,2]
[388801014,1759365037800,-500.0,0.00019169,2]
[388801015,1759365037809,-500.0,0.00019169,2]
[388801016,1759365037819,-500.0,0.00019169,2]
[388801017,1759365037828,-243.82772401,0.00019169,2]
[388801018,1759365037838,-500.0,0.00019169,2]
[388801020,1759365037847,-500.0,0.00019169,2]
[388801021,1759365037856,-500.0,0.00019169,2]
[388801022,1759365037866,-367.33087709,0.00019169,2]
[388801023,1759365037876,-500.0,0.00019169,2]
[388801024,1759365037886,-463.72897769,0.00019169,2]
[388801025,1759365037895,-440.52277268,0.00019169,2]
[388801026,1759365037903,-500.0,0.00019169,2]
[388801027,1759365037913,-500.0,0.00019169,2]
[388801028,1759365037921,-500.0,0.00019169,2]
[388801029,1759365037931,-178.36589538,0.00019169,2]
[388801030,1759365037940,-259.75753804,0.00019169,2]
[388801031,1759365037949,-50000.0,0.0001917,2]
[388801032,1759365037958,-164.99837838,0.00019173,2]
[388801033,1759365037967,-578.408847,0.00019173,2]
[388801034,1759365037976,-500.0,0.00019173,2]
[388801035,1759365037985,-500.0,0.00019173,2]
[388801036,1759365037995,-500.0,0.00019173,2]
[388801037,1759365038003,-500.0,0.00019173,2]
[388801038,1759365038013,-500.0,0.00019173,2]
[388801039,1759365038022,-500.0,0.00019173,2]
[388801040,1759365038031,-500.0,0.00019173,2]
[388801041,1759365038040,-572.08826976,0.00019173,2]
[388801042,1759365038050,-500.0,0.00019173,2]
[388801043,1759365038060,-516.0221461,0.00019173,2]
[388801044,1759365038069,-500.0,0.00019173,2]
[388801045,1759365038079,-500.0,0.00019173,2]
[388801046,1759365038088,-500.0,0.00019173,2]
[388801047,1759365038098,-500.0,0.00019173,2]
[388801048,1759365038108,-158.31676954,0.00019173,2]
[388801049,1759365038118,-500.0,0.00019173,2]
[388801050,1759365038130,-500.0,0.00019173,2]
[388801051,1759365038139,-634.97024081,0.00019173,2]
[388801052,1759365038149,-500.0,0.00019173,2]
[388801053,1759365038159,-500.0,0.00019173,2]
[388801054,1759365038171,-500.0,0.00019173,2]
[388801055,1759365038181,-500.0,0.00019173,2]
[388801056,1759365038190,-617.66842259,0.00019173,2]
[388801057,1759365038200,-500.0,0.00019173,2]
[388801058,1759365038210,-500.0,0.00019173,2]
[388801059,1759365038219,-500.0,0.00019173,2]
[388801060,1759365038229,-438.65338821,0.00019173,2]
[388801061,1759365038239,-593.85091944,0.00019173,2]
[388801062,1759365038249,-500.0,0.00019173,2]
[388801063,1759365038258,-500.0,0.00019173,2]
[388801064,1759365038268,-500.0,0.00019173,2]
[388801065,1759365038277,-500.0,0.00019173,2]
[388801066,1759365038287,-24548.39820921,0.00019176,2]
[388801067,1759365038296,-500.0,0.00019178,2]
[388801068,1759365038306,-480.0,0.00019178,2]
[388801069,1759365038316,-500.0,0.00019178,2]
[388801070,1759365038325,-481.46208121,0.00019178,2]
[388801071,1759365038334,-520.0,0.00019178,3]
[388801072,1759365038345,-500.0,0.00019178,2]
[388801073,1759365038355,-466.63485749,0.00019178,2]
[388801074,1759365038364,-482.1378436,0.00019178,2]
[388801075,1759365038377,-480.0,0.00019178,2]
[388801076,1759365038387,-480.0,0.00019178,2]
[388801077,1759365038397,-500.0,0.00019178,2]
[388801078,1759365038407,-500.0,0.00019178,2]
[388801079,1759365038416,-460.0,0.00019178,2]
[388801080,1759365038426,-500.0,0.00019178,2]
[388801081,1759365038437,-463.67853633,0.00019178,2]
[388801082,1759365038447,-500.0,0.00019178,2]
[388801083,1759365038457,-500.0,0.00019178,2]
[388801084,1759365038466,-500.0,0.00019178,2]
[388801085,1759365038476,-480.0,0.00019178,2]
[388801086,1759365038485,-500.0,0.00019178,2]
[388801087,1759365038495,-440.0,0.00019178,2]
[388801088,1759365038504,-408.85341755,0.00019178,2]
[388801089,1759365038513,-500.0,0.00019178,2]
[388801090,1759365038522,-531.99068474,0.00019178,2]
[388801091,1759365038532,-500.0,0.00019178,2]
[388801092,1759365038542,-480.0,0.00019178,2]
[388801093,1759365038553,-500.0,0.00019178,2]
[388801094,1759365038563,-463.49576936,0.00019178,2]
[388801095,1759365038573,-500.0,0.00019178,2]
[388801096,1759365038583,-482.21843714,0.00019178,2]
[388801097,1759365038594,-500.0,0.00019178,2]
[388801098,1759365038604,-500.0,0.00019178,2]
[388801099,1759365038613,-500.0,0.00019178,2]
[388801100,1759365038623,-500.0,0.00019178,2]
[388801101,1759365038634,-500.0,0.00019178,2]